fUST/lending_fUST_20240726
["ID","MTS","AMOUNT","RATE_DAILY","PERIOD"]
[333186311,1721927448340,-154.80649189,0.00013972,2]
[333186312,1721927448349,-500.0,0.00013972,2]
[333186313,1721927448358,-509.17657839,0.00013972,2]
[333186314,1721927448367,-1340.29,0.00013972,2]
[333186315,1721927448376,-932.08,0.00013972,2]
[333186316,1721927448386,-172.536428,0.00013972,2]
[333186317,1721927448396,-813.63,0.00013972,2]
[333186318,1721927448406,-500.0,0.00013972,2]
[333186319,1721927448416,-648.54,0.00013972,2]
[333186320,1721927448426,-666.31,0.00013972,2]
[333186321,1721927448436,-3154.14,0.00013972,2]
[333186322,1721927448446,-500.0,0.00013972,2]
[333186323,1721927448456,-892.44,0.00013972,2]
[333186324,1721927448466,-500.0,0.00013972,2]
[333186325,1721927448477,-500.0,0.00013972,2]
[333186326,1721927448487,-500.0,0.00013972,2]
[333186327,1721927448500,-2577.11,0.00013972,2]
[333186328,1721927448509,-500.0,0.00013972,2]
[333186329,1721927448519,-1554.29,0.00013972,2]
[333186330,1721927448529,-1106.74,0.00013972,2]
[333186331,1721927448539,-500.0,0.00013972,2]
[333186332,1721927448549,-964.58,0.00013972,2]
[333186333,1721927448559,-500.0,0.00013972,2]
[333186334,1721927448568,-500.0,0.00013972,2]
[333186335,1721927448577,-500.0,0.00013972,2]
[333186336,1721927448587,-2237.01,0.00013972,2]
[333186337,1721927448596,-500.0,0.00013972,2]
[333186338,1721927448606,-500.0,0.00013972,2]
[333186339,1721927448615,-506.55,0.00013972,2]
[333186340,1721927448624,-503.71130768,0.00013972,2]
[333186341,1721927448634,-1062.99,0.00013972,2]
[333186342,1721927448643,-1627.268483,0.00013972,2]
[333186343,1721927448652,-1627.268483,0.00013972,2]
[333186344,1721927448662,-568.13,0.00013972,2]
[333186345,1721927448672,-1627.268483,0.00013972,2]
[333186346,1721927448682,-1627.268483,0.00013972,2]
[333186347,1721927448692,-500.0,0.00013972,2]
[333186348,1721927448703,-3505.0,0.00013972,2]
[333186349,1721927448713,-500.0,0.00013972,2]
[333186350,1721927448723,-2257.7,0.00013972,2]
[333186351,1721927448733,-500.0,0.00013972,2]
[333186352,1721927448743,-500.0,0.00013972,2]
[333186353,1721927448757,-500.0,0.00013972,2]
[333186354,1721927448767,-500.0,0.00013972,2]
[333186355,1721927448778,-506.25486992,0.00013972,2]
[333186356,1721927448788,-1997.07,0.00013972,2]
[333186357,1721927448801,-500.0,0.00013972,2]
[333186358,1721927448810,-1746.36,0.00013972,2]
[333186359,1721927448819,-500.0,0.00013972,2]
[333186360,1721927448828,-500.0,0.00013972,2]
[333186361,1721927448840,-3292.49,0.00013972,2]
[333186362,1721927448849,-545.85386297,0.00013972,2]
[333186363,1721927448858,-500.0,0.00013972,2]
[333186364,1721927448868,-500.0,0.00013972,2]
[333186365,1721927448878,-500.0,0.00013972,2]
[333186366,1721927448888,-824.18,0.00013972,2]
[333186367,1721927448898,-500.0,0.00013972,2]
[333186368,1721927448908,-884.95,0.00013972,2]
[333186369,1721927448919,-953.88,0.00013972,2]
[333186370,1721927448928,-500.0,0.00013972,2]
[333186371,1721927448938,-505.73877375,0.00013972,2]
[333186372,1721927448948,-500.0,0.00013972,2]
[333186373,1721927448958,-500.0,0.00013972,2]
[333186374,1721927448968,-11909.14,0.00013972,2]
[333186375,1721927448978,-1131.0,0.00013972,2]
[333186376,1721927448987,-500.0,0.00013972,2]
[333186377,1721927448999,-503.96679384,0.00013972,2]
[333186378,1721927449009,-500.0,0.00013972,2]
[333186379,1721927449019,-500.0,0.00013972,2]
[333186380,1721927449029,-1120.68,0.00013972,2]
[333186381,1721927449040,-620.33,0.00013972,2]
[333186382,1721927449051,-5038.56,0.00013972,2]
[333186383,1721927449061,-500.0,0.00013972,2]
[333186384,1721927449071,-500.0,0.00013972,2]
[333186385,1721927449081,-500.0,0.00013972,2]
[333186386,1721927449092,-1928.47,0.00013972,2]
[333186387,1721927449102,-500.0,0.00013972,2]
[333186388,1721927449111,-500.0,0.00013972,2]
[333186389,1721927449122,-2201.11,0.00013972,2]
[333186390,1721927449132,-500.0,0.00013972,2]
[333186391,1721927449142,-1011.6,0.00013972,2]
[333186392,1721927449152,-500.0,0.00013972,2]
[333186393,1721927449162,-576.95,0.00013972,2]
[333186394,1721927449172,-9992.31,0.00013972,2]
[333186395,1721927449182,-500.0,0.00013972,2]
[333186396,1721927449192,-500.0,0.00013972,2]
[333186397,1721927449202,-500.0,0.00013972,2]
[333186398,1721927449212,-1551.57,0.00013972,2]
[333186399,1721927449222,-1578.49,0.00013972,2]
[333186400,1721927449231,-859.56,0.00013972,2]
[333186401,1721927449242,-151.0,0.00013972,2]
[333186402,1721927449254,-151.0,0.00013972,2]
[333186403,1721927449264,-500.0,0.00013972,2]
[333186404,1721927449275,-1110.010626,0.00013972,2]
[333186405,1721927449286,-1110.010626,0.00013972,2]
[333186406,1721927449296,-500.0,0.00013972,2]
[333186407,1721927449307,-500.0,0.00013972,2]
[333186408,1721927449317,-1110.010626,0.00013972,2]
[333186409,1721927449327,-3743.12,0.00013972,2]
[333186410,1721927449337,-1110.010626,0.00013972,2]
[333186411,1721927449347,-500.0,0.00013972,2]
[333186412,1721927449358,-500.0,0.00013972,2]
[333186413,1721927449368,-500.0,0.00013972,2]
[333186414,1721927449378,-1197.21,0.00013972,2]
[333186415,1721927449388,-945.86,0.00013972,2]
[333186416,1721927449397,-368.21298626,0.00013972,2]
[333186417,1721927449408,-2016.41,0.00013972,2]
[333186418,1721927449419,-500.0,0.00013972,2]
[333186419,1721927449429,-500.0,0.00013972,2]
[333186420,1721927449439,-972.43,0.00013972,2]
[333186421,1721927449450,-500.0,0.00013972,2]
[333186422,1721927449461,-506.72858475,0.00013972,2]
[333186423,1721927449470,-1931.27,0.00013972,2]
[333186424,1721927449480,-500.0,0.00013972,2]
[333186425,1721927449490,-500.0,0.00013972,2]
[333186426,1721927449501,-500.0,0.00013972,2]
[333186427,1721927449512,-500.0,0.00013972,2]
[333186428,1721927449523,-500.0,0.00013972,2]
[333186429,1721927449534,-500.0,0.00013972,2]
[333186430,1721927449545,-657.54,0.00013972,2]
[333186431,1721927449557,-500.0,0.00013972,2]
[333186432,1721927449566,-500.0,0.00013972,2]
[333186433,1721927449577,-1820.02,0.00013972,2]
[333186434,1721927449587,-540.23,0.00013972,2]
[333186435,1721927449599,-500.0,0.00013972,2]
[333186436,1721927449610,-1178.43,0.00013972,2]
[333186437,1721927449622,-500.0,0.00013972,2]
[333186438,1721927449634,-1510.81,0.00013972,2]
[333186439,1721927449644,-5851.38,0.00013972,2]
[333186440,1721927449655,-1621.43,0.00013972,2]
[333186441,1721927449664,-7992.54,0.00013972,2]
[333186442,1721927449675,-1075.5,0.00013972,2]
[333186443,1721927449687,-553.91,0.00013972,2]
[333186444,1721927449698,-935.24,0.00013972,2]
[333186445,1721927449710,-500.0,0.00013972,2]
[333186446,1721927449720,-591.05,0.00013972,2]
[333186447,1721927449731,-1762.51,0.00013972,2]
[333186448,1721927449741,-500.0,0.00013972,2]
[333186449,1721927449751,-500.0,0.00013972,2]
[333186450,1721927449762,-500.0,0.00013972,2]
[333186451,1721927449772,-500.0,0.00013972,2]
[333186452,1721927449782,-500.0,0.00013972,2]
[333186453,1721927449791,-500.0,0.00013972,2]
[333186454,1721927449802,-500.0,0.00013972,2]
[333186455,1721927449812,-500.0,0.00013972,2]
[333186456,1721927449822,-3113.68,0.00013972,2]
[333186457,1721927449835,-1893.92,0.00013972,2]
[333186458,1721927449846,-518.04,0.00013972,2]
[333186459,1721927449857,-151.0,0.00013972,2]
[333186460,1721927449868,-151.0,0.00013972,2]
[333186461,1721927449999,-815.62,0.00013972,2]
[333186462,1721927450026,-500.0,0.00013972,2]
[333186463,1721927450035,-784.87,0.00013972,2]
[333186464,1721927450045,-1050.01,0.00013972,2]
[333186465,1721927450057,-500.0,0.00013972,2]
[333186466,1721927450067,-500.0,0.00013972,2]
[333186467,1721927450077,-151.0,0.00014084,2]
[333186468,1721927450088,-3200.0,0.00014084,2]
[333186469,1721927450097,-154.72922386,0.00014182,2]
[333186470,1721927450108,-151.0,0.00014236,2]
[333186471,1721927450118,-151.0,0.00014236,2]
[333186472,1721927450128,-151.0,0.00014236,2]
[333186473,1721927450139,-151.0,0.00014236,2]
[333186474,1721927450149,-151.0,0.00014246,2]
[333186475,1721927450159,-151.0,0.00014246,2]
[333186476,1721927450168,-151.0,0.00014246,2]
[333186477,1721927450178,-151.0,0.00014246,2]
[333186478,1721927450188,-162.6,0.00014246,2]
[333186479,1721927450199,-647.97,0.00014246,2]
[333186480,1721927450210,-500.0,0.00014246,2]
[333186481,1721927450220,-500.0,0.00014246,2]
[333186482,1721927450229,-400.88922609,0.00014246,2]
[333186483,1721927450239,-479.01163698,0.00014246,2]
[333186484,1721927450250,-344.94435489,0.00014246,2]
[333186485,1721927450259,-500.0,0.00014246,2]
[333186486,1721927450268,-500.0,0.00014246,2]
[333186487,1721927450277,-500.0,0.00014246,2]
[333186488,1721927450287,-503.57240317,0.00014246,2]
[333186489,1721927450296,-500.0,0.00014246,2]
[333186490,1721927450305,-500.0,0.00014246,2]
[333186491,1721927450315,-634.83,0.00014246,2]
[333186492,1721927450325,-500.0,0.00014246,2]
[333186493,1721927450335,-500.0,0.00014246,2]
[333186494,1721927450345,-500.0,0.00014246,2]
[333186495,1721927450354,-500.0,0.00014246,2]
[333186496,1721927450364,-504.34113146,0.00014246,2]
[333186497,1721927450373,-500.0,0.00014246,2]
[333186498,1721927450383,-151.416266,0.00014246,2]
[333186499,1721927450392,-500.0,0.00014246,2]
[333186500,1721927450403,-500.0,0.00014246,2]
[333186501,1721927450412,-500.0,0.00014246,2]
[333186502,1721927450422,-500.0,0.00014246,2]
[333186503,1721927450432,-547.02724119,0.00014246,2]
[333186504,1721927450441,-500.0,0.00014246,2]
[333186505,1721927450450,-500.0,0.00014246,2]
[333186506,1721927450460,-500.0,0.00014246,2]
[333186507,1721927450470,-500.0,0.00014246,2]
[333186508,1721927450479,-500.0,0.00014246,2]
[333186509,1721927450489,-500.0,0.00014246,2]
[333186510,1721927450498,-375.7699828,0.00014246,2]
[333186511,1721927450508,-500.0,0.00014246,2]
[333186512,1721927450518,-500.0,0.00014246,2]
[333186513,1721927450528,-500.0,0.00014246,2]
[333186514,1721927450537,-500.0,0.00014246,2]
[333186515,1721927450546,-500.0,0.00014246,2]
[333186516,1721927450555,-500.0,0.00014246,2]
[333186517,1721927450565,-500.0,0.00014246,2]
[333186518,1721927450575,-500.0,0.00014246,2]
[333186519,1721927450584,-500.0,0.00014246,2]
[333186520,1721927450593,-500.0,0.00014246,2]
[333186521,1721927450602,-151.0,0.00014246,2]
[333186522,1721927450612,-504.33677994,0.00014246,2]
[333186523,1721927450621,-151.0,0.00014246,2]
[333186524,1721927450630,-500.0,0.00014246,2]
[333186525,1721927450639,-500.0,0.00014246,2]
[333186526,1721927450649,-500.0,0.00014246,2]
[333186527,1721927450658,-536.20268313,0.00014246,2]
[333186528,1721927450668,-500.0,0.00014246,2]
[333186529,1721927450677,-359.12213741,0.00014246,2]
[333186530,1721927450686,-500.0,0.00014246,2]
[333186531,1721927450696,-500.0,0.00014246,2]
[333186532,1721927450705,-655.73,0.00014246,2]
[333186533,1721927450715,-1429.57,0.00014246,2]
[333186534,1721927450725,-500.0,0.00014246,2]
[333186535,1721927450734,-300.62457909,0.00014246,2]
[333186536,1721927450744,-500.0,0.00014246,2]
[333186537,1721927450755,-500.0,0.00014246,2]
[333186538,1721927450765,-719.83,0.00014246,2]
[333186539,1721927450774,-500.0,0.00014246,2]
[333186540,1721927450783,-500.0,0.00014246,2]
[333186541,1721927450793,-500.0,0.00014246,2]
[333186542,1721927450803,-500.0,0.00014246,2]
[333186543,1721927450812,-500.0,0.00014246,2]
[333186544,1721927450822,-500.0,0.00014246,2]
[333186545,1721927450832,-273.03,0.00014246,2]
[333186546,1721927450846,-500.0,0.00014246,2]
[333186547,1721927450855,-500.0,0.00014246,2]
[333186548,1721927450865,-500.0,0.00014246,2]
[333186549,1721927450875,-500.0,0.00014246,2]
[333186550,1721927450886,-500.0,0.00014246,2]
[333186551,1721927450895,-500.0,0.00014246,2]
[333186552,1721927450904,-166.428033,0.00014246,2]
[333186553,1721927450914,-166.428033,0.00014246,2]
[333186554,1721927450925,-500.0,0.00014246,2]
[333186555,1721927450934,-166.428033,0.00014246,2]
[333186556,1721927450944,-1476.46,0.00014246,2]
[333186557,1721927450954,-166.428033,0.00014246,2]
[333186558,1721927450965,-500.0,0.00014246,2]
[333186559,1721927450977,-500.0,0.00014246,2]
[333186560,1721927450988,-500.0,0.00014246,2]
[333186561,1721927450999,-500.0,0.00014246,2]
[333186562,1721927451011,-500.0,0.00014246,2]
[333186563,1721927451022,-500.0,0.00014246,2]
[333186564,1721927451032,-559.24,0.00014246,2]
[333186565,1721927451044,-500.0,0.00014246,2]
[333186566,1721927451054,-1040.51,0.00014246,2]
[333186567,1721927451066,-1128.01,0.00014246,2]
[333186568,1721927451076,-500.0,0.00014246,2]
[333186569,1721927451086,-336.50403891,0.00014246,2]
[333186570,1721927451095,-500.0,0.00014246,2]
[333186571,1721927451105,-500.0,0.00014246,2]
[333186572,1721927451115,-500.0,0.00014246,2]
[333186573,1721927451127,-500.0,0.00014246,2]
[333186574,1721927451140,-500.0,0.00014246,2]
[333186575,1721927451151,-500.0,0.00014246,2]
[333186576,1721927451162,-2517.97,0.00014246,2]
[333186577,1721927451173,-1610.96,0.00014246,2]
[333186578,1721927451183,-500.0,0.00014246,2]
[333186579,1721927451195,-500.0,0.00014246,2]
[333186580,1721927451207,-500.0,0.00014246,2]
[333186581,1721927451219,-500.0,0.00014246,2]
[333186582,1721927451230,-723.39,0.00014246,2]
[333186583,1721927451241,-500.0,0.00014246,2]
[333186584,1721927451252,-58.50855861,0.00014246,2]
[333186585,1721927452286,-270.81688255,0.00013698,2]
[333186586,1721927452298,-320.87880821,0.00013698,2]
[333186587,1721927452308,-500.0,0.00013698,2]
[333186588,1721927452318,-278.89437929,0.00013698,2]
[333186623,1721927965434,1298.74115521,0.00024,60]
[333186673,1721928404169,-300.00618204,9.415e-05,2]
[333186727,1721928632135,-600.0,9.32e-05,2]
[333186728,1721928632145,-200.0,9.32e-05,2]
[333186729,1721928632157,-58.56905389,9.414e-05,2]
[333186733,1721928632215,-241.43094611,9.414e-05,2]
[333186735,1721928632225,-300.0,9.414e-05,2]
[333186737,1721928632237,-185.25109467,9.415e-05,2]
[333186739,1721928632247,-2106.31551891,9.415e-05,2]
[333186740,1721928632257,-1625.30319851,9.415e-05,2]
[333186742,1721928632267,-16018.3201662,9.415e-05,2]
[333186743,1721928632277,-218.09499306,9.415e-05,2]
[333186744,1721928632287,-3776.426534,9.415e-05,2]
[333186745,1721928632296,-24900.0,9.688e-05,2]
[333186746,1721928632306,-154.80649189,9.999e-05,2]
[333186747,1721928632316,-531.48394827,9.999e-05,2]
[333186748,1721928632326,-154.83734357,9.999e-05,2]
[333186749,1721928632336,-521.61052637,9.999e-05,2]
[333186750,1721928632347,-155.0383145,9.999e-05,2]
[333186751,1721928632358,-726.90527473,9.999e-05,2]
[333186752,1721928632368,-154.80649189,9.999e-05,2]
[333186753,1721928632378,-533.46933228,9.999e-05,2]
[333186754,1721928632387,-806.05588031,9.999e-05,2]
[333186755,1721928632396,-309.48934567,9.999e-05,2]
[333186756,1721928632406,-941.81566876,9.999e-05,2]
[333186757,1721928632417,-309.45846005,9.999e-05,2]
[333186758,1721928632427,-160.02872969,9.999e-05,2]
[333186759,1721928632440,-288.28494131,9.999e-05,2]
[333186760,1721928632449,-600.34409866,9.999e-05,2]
[333186761,1721928632461,-403.39616838,9.999e-05,2]
[333186762,1721928632470,-309.47390132,9.999e-05,2]
[333186763,1721928632479,-154.80649189,9.999e-05,2]
[333186764,1721928632499,-156.68383461,9.999e-05,2]
[333186765,1721928632511,-154.80649189,9.999e-05,2]
[333186766,1721928632522,-404.41023413,9.999e-05,2]
[333186767,1721928632532,-309.47390132,9.999e-05,2]
[333186768,1721928632541,-240.59744191,9.999e-05,2]
[333186769,1721928632551,-188.0737834,9.999e-05,2]
[333186770,1721928632561,-156.59792059,9.999e-05,2]
[333186771,1721928632572,-156.4756886,9.999e-05,2]
[333186772,1721928632583,-778.99945191,9.999e-05,2]
[333186773,1721928632595,-567.99228217,9.999e-05,2]
[333186774,1721928632606,-519.49324857,9.999e-05,2]
[333186775,1721928632619,-248.87416602,9.999e-05,2]
[333186776,1721928632628,-444.48205735,9.999e-05,2]
[333186777,1721928632638,-498.20643236,9.999e-05,2]
[333186778,1721928632648,-209.69045866,9.999e-05,2]
[333186779,1721928632658,-154.86308045,9.999e-05,2]
[333186780,1721928632668,-253.533236,9.999e-05,2]
[333186781,1721928632679,-208.55751505,9.999e-05,2]
[333186782,1721928632689,-319.18205091,9.999e-05,2]
[333186783,1721928632700,-201.30530872,9.999e-05,2]
[333186784,1721928632711,-413.56025777,9.999e-05,2]
[333186785,1721928632722,-341.75517415,9.999e-05,2]
[333186786,1721928632732,-199.24858981,9.999e-05,2]
[333186787,1721928632742,-375.71965639,9.999e-05,2]
[333186788,1721928632752,-287.48002697,0.0001,2]
[333186789,1721928632764,-420.0,0.00010355,2]
[333186790,1721928632775,-200.0,0.0001069,2]
[333186791,1721928632786,-300.0,0.00010959,2]
[333186792,1721928632798,-587.0,0.00011391,2]
[333186793,1721928632809,-731.30595831,0.00011412,2]
[333186794,1721928632820,-167.658568,0.00011795,2]
[333186795,1721928632830,-167.658568,0.00011883,2]
[333186796,1721928632840,-167.658568,0.00011971,2]
[333186797,1721928632850,-167.658568,0.00012058,2]
[333186798,1721928632860,-167.658568,0.00012146,2]
[333186799,1721928632871,-167.658568,0.00012234,2]
[333186800,1721928632882,-167.658568,0.00012322,2]
[333186801,1721928632893,-167.658568,0.0001241,2]
[333186802,1721928632903,-420.0,0.0001253,2]
[333186803,1721928632912,-763.9876433,0.000129,2]
[333186804,1721928632923,-763.98764324,0.000129,2]
[333186805,1721928632933,-228.8874327,0.00013378,2]
[333186806,1721928632943,-200.0,0.00013425,2]
[333186807,1721928632953,-206.60673802,0.00013498,2]
[333186808,1721928632963,-11929.8753423,0.0001358,2]
[333186809,1721928632977,-4621.0398282,0.0001358,2]
[333186810,1721928632988,-193.03776786,0.00013598,2]
[333186811,1721928632998,-982.86982731,0.00013598,2]
[333186812,1721928633009,-2064.46911406,0.00013655,2]
[333186878,1721928638676,-584.38683368,0.00013655,2]
[333186880,1721928638687,-787.06022961,0.00013655,2]
[333186882,1721928638698,-7459.88378545,0.00013655,2]
[333186884,1721928638711,-166184.103763,0.00013688,2]
[333186886,1721928638720,-527.8144405,0.00013698,2]
[333186888,1721928638729,-500.0,0.00013698,2]
[333186890,1721928638738,-500.0,0.00013698,2]
[333186892,1721928638747,-500.0,0.00013698,2]
[333186894,1721928638757,-500.0,0.00013698,2]
[333186896,1721928638766,-500.0,0.00013698,2]
[333186897,1721928638776,-500.0,0.00013698,2]
[333186898,1721928638786,-500.0,0.00013698,2]
[333186899,1721928638796,-500.0,0.00013698,2]
[333186900,1721928638807,-500.0,0.00013698,2]
[333186901,1721928638816,-500.0,0.00013698,2]
[333186902,1721928638825,-500.0,0.00013698,2]
[333186903,1721928638835,-365.23648339,0.00013698,2]
[333186904,1721928638845,-500.0,0.00013698,2]
[333186905,1721928638855,-500.0,0.00013698,2]
[333186906,1721928638865,-501.54052837,0.00013698,2]
[333186907,1721928638875,-500.0,0.00013698,2]
[333186908,1721928638884,-500.0,0.00013698,2]
[333186909,1721928638894,-500.0,0.00013698,2]
[333186910,1721928638903,-154.80649189,0.00013698,2]
[333186911,1721928638913,-500.0,0.00013698,2]
[333186912,1721928638926,-500.0,0.00013698,2]
[333186913,1721928638935,-500.0,0.00013698,2]
[333186914,1721928638945,-500.0,0.00013698,2]
[333186915,1721928638955,-500.0,0.00013698,2]
[333186916,1721928638965,-500.0,0.00013698,2]
[333186917,1721928638974,-500.0,0.00013698,2]
[333186918,1721928638983,-550.58622543,0.00013698,2]
[333186919,1721928638993,-516.98125419,0.00013698,2]
[333186920,1721928639004,-500.0,0.00013698,2]
[333186921,1721928639013,-500.0,0.00013698,2]
[333186922,1721928639025,-681.98,0.00013698,2]
[333186923,1721928639036,-1374.14,0.00013698,2]
[333186924,1721928639048,-500.0,0.00013698,2]
[333186925,1721928639058,-500.0,0.00013698,2]
[333186926,1721928639069,-500.0,0.00013698,2]
[333186927,1721928639079,-500.0,0.00013698,2]
[333186928,1721928639089,-500.0,0.00013698,2]
[333186929,1721928639099,-500.0,0.00013698,2]
[333186930,1721928639111,-500.0,0.00013698,2]
[333186931,1721928639120,-500.0,0.00013698,2]
[333186932,1721928639131,-502.1748445,0.00013698,2]
[333186933,1721928639141,-500.0,0.00013698,2]
[333186934,1721928639152,-500.0,0.00013698,2]
[333186935,1721928639167,-173.26318077,0.00013698,2]
[333186936,1721928639179,-500.0,0.00013698,2]
[333186937,1721928639189,-500.0,0.00013698,2]
[333186938,1721928639200,-502.93396417,0.00013698,2]
[333186939,1721928639212,-417.24308385,0.00013698,2]
[333186940,1721928639223,-500.0,0.00013698,2]
[333186941,1721928639233,-500.18655196,0.00013698,2]
[333186942,1721928639246,-500.0,0.00013698,2]
[333186943,1721928639257,-500.0,0.00013698,2]
[333186944,1721928639268,-500.0,0.00013698,2]
[333186945,1721928639278,-500.0,0.00013698,2]
[333186946,1721928639289,-500.0,0.00013698,2]
[333186947,1721928639301,-500.0,0.00013698,2]
[333186948,1721928639312,-500.0,0.00013698,2]
[333186949,1721928639486,-502.24633908,0.00013698,2]
[333186950,1721928639496,-500.0,0.00013698,2]
[333186951,1721928639505,-500.0,0.00013698,2]
[333186952,1721928639515,-500.0,0.00013698,2]
[333186953,1721928639527,-500.0,0.00013698,2]
[333186954,1721928639538,-630.91535431,0.00013698,2]
[333186955,1721928639549,-500.0,0.00013698,2]
[333186956,1721928639560,-500.0,0.00013698,2]
[333186957,1721928639572,-500.0,0.00013698,2]
[333186958,1721928639581,-500.0,0.00013698,2]
[333186959,1721928639590,-500.0,0.00013698,2]
[333186960,1721928639599,-516.34041717,0.00013698,2]
[333186962,1721928639608,-500.0,0.00013698,2]
[333186963,1721928639618,-529.05589572,0.00013698,2]
[333186966,1721928639627,-500.0,0.00013698,2]
[333186967,1721928639636,-500.0,0.00013698,2]
[333186969,1721928639645,-500.0,0.00013698,2]
[333186971,1721928639655,-500.0,0.00013698,2]
[333186972,1721928639664,-500.0,0.00013698,2]
[333186973,1721928639673,-500.0,0.00013698,2]
[333186974,1721928639683,-500.0,0.00013698,2]
[333186976,1721928639692,-509.72967347,0.00013698,2]
[333186978,1721928639701,-384.21361647,0.00013698,2]
[333186980,1721928639713,-509.44817324,0.00013698,2]
[333186982,1721928639722,-6035.0,0.00013698,2]
[333186984,1721928639732,-6035.0,0.00013698,2]
[333186986,1721928639742,-6035.0,0.00013698,2]
[333186988,1721928639751,-819.7,0.00013698,2]
[333186990,1721928639761,-6035.0,0.00013698,2]
[333186992,1721928639770,-6035.0,0.00013698,2]
[333186995,1721928639780,-6035.0,0.00013698,2]
[333186998,1721928639790,-500.0,0.00013698,2]
[333187000,1721928639799,-6035.0,0.00013698,2]
[333187003,1721928639809,-6035.0,0.00013698,2]
[333187006,1721928639818,-6035.0,0.00013698,2]
[333187008,1721928639827,-6035.0,0.00013698,2]
[333187011,1721928639837,-6035.0,0.00013698,2]
[333187014,1721928639846,-6035.0,0.00013698,2]
[333187016,1721928639856,-6035.0,0.00013698,2]
[333187018,1721928639865,-198.97929817,0.00013698,2]
[333187021,1721928639875,-6035.0,0.00013698,2]
[333187023,1721928639886,-6035.0,0.00013698,2]
[333187025,1721928639896,-6035.0,0.00013698,2]
[333187027,1721928639905,-6035.0,0.00013698,2]
[333187030,1721928639915,-6035.0,0.00013698,2]
[333187033,1721928639924,-6035.0,0.00013698,2]
[333187035,1721928639934,-6035.0,0.00013698,2]
[333187037,1721928639943,-685.25,0.00013698,2]
[333187039,1721928639953,-6035.0,0.00013698,2]
[333187041,1721928639964,-6035.0,0.00013698,2]
[333187043,1721928639975,-6035.0,0.00013698,2]
[333187045,1721928639984,-6035.16785508,0.00013698,2]
[333187046,1721928639993,-500.0,0.00013698,2]
[333187047,1721928640002,-514.36791962,0.00013698,2]
[333187048,1721928640012,-500.0,0.00013698,2]
[333187049,1721928640021,-500.0,0.00013698,2]
[333187050,1721928640031,-500.0,0.00013698,2]
[333187051,1721928640042,-500.0,0.00013698,2]
[333187052,1721928640051,-500.0,0.00013698,2]
[333187053,1721928640061,-512.45552143,0.00013698,2]
[333187055,1721928640070,-500.0,0.00013698,2]
[333187056,1721928640079,-170.0,0.00013698,2]
[333187058,1721928640089,-177.11607146,0.00013698,2]
[333187059,1721928640098,-500.0,0.00013698,2]
[333187060,1721928640107,-500.0,0.00013698,2]
[333187061,1721928640117,-501.72351457,0.00013698,2]
[333187062,1721928640127,-500.0,0.00013698,2]
[333187063,1721928640136,-500.0,0.00013698,2]
[333187064,1721928640146,-502.22351897,0.00013698,2]
[333187066,1721928640157,-500.0,0.00013698,2]
[333187067,1721928640167,-500.0,0.00013698,2]
[333187068,1721928640177,-500.0,0.00013698,2]
[333187069,1721928640186,-500.0,0.00013698,2]
[333187070,1721928640196,-500.0,0.00013698,2]
[333187071,1721928640208,-506.01830379,0.00013698,2]
[333187072,1721928640217,-500.0,0.00013698,2]
[333187073,1721928640231,-536.8530728,0.00013698,2]
[333187075,1721928640240,-502.53453976,0.00013698,2]
[333187077,1721928640249,-500.0,0.00013698,2]